bitfinex/quotes_ETHUSD_20250508
["timestamp","ask_amount","ask_price","bid_price","bid_amount"]
[1746676475610,5.29140053,1889.9,1889.6,0.8146]
[1746676475726,5.29168315,1889.8,1889.6,0.8146]
[1746676475931,5.29140053,1889.9,1889.6,0.8146]
[1746676476324,10.58292904,1889.9,1889.6,0.8146]
[1746676476526,6.04471078,1890.1,1889.6,0.8146]
[1746676476715,5.29175381,1889.8,1889.6,0.8146]
[1746676477071,5.29128525,1889.9,1889.0,0.7659]
[1746676477365,5.29344386,1889.2,1889.0,0.7659]
[1746676477714,0.7644,1889.8,1889.0,0.7659]
[1746676477918,5.2928075,1889.4,1889.1,0.05293433]
[1746676478221,5.2928075,1889.4,1889.1,0.55]
[1746676479222,5.29208439,1889.7,1889.1,5.84350452]
[1746676479435,0.7644,1889.8,1889.1,5.84350452]
[1746676479436,5.29233638,1889.6,1889.1,5.29337259]
[1746676479674,5.29233638,1889.6,1889.2,0.55]
[1746676479873,5.29240635,1889.5,1889.2,0.55]
[1746676480066,5.29233638,1889.6,1889.2,0.55]
[1746676480067,10.58288039,1889.9,1889.2,0.55]
[1746676480253,10.58288039,1889.9,1889.0,9.0596065]
[1746676480254,5.29298164,1889.3,1889.1,0.55]
[1746676480455,5.29286592,1889.4,1889.1,0.55]
[1746676480946,5.29200586,1889.7,1889.2,5.34590643]
[1746676481147,5.29200586,1889.7,1889.4,0.55]
[1746676481469,5.29158124,1889.8,1889.5,0.05291782]
[1746676482077,5.29158595,1889.8,1889.5,0.05291782]
[1746676482381,5.29139263,1889.9,1889.5,0.05291782]
[1746676482879,5.29184526,1889.7,1889.6,0.8218]
[1746676483078,5.29166432,1889.8,1889.6,0.8218]
[1746676483469,5.29184526,1889.7,1889.6,0.8218]
[1746676483647,5.29168999,1889.8,1889.6,0.8218]
[1746676483842,5.291416,1889.9,1889.6,0.8218]
[1746676484238,10.5829356,1889.9,1889.6,0.8218]
[1746676484478,5.29145897,1889.9,1889.6,0.8218]
[1746676484978,5.29156893,1889.8,1889.6,0.8218]
[1746676485182,5.29184526,1889.7,1889.6,0.8218]
[1746676485381,5.29184526,1889.7,1889.4,6.63]
[1746676485588,5.29212531,1889.6,1889.4,6.08]
[1746676485773,5.29240539,1889.5,1889.4,6.08]
[1746676486074,5.29184526,1889.7,1889.0,0.8218]
[1746676486249,5.29306986,1889.3,1889.0,0.8218]
[1746676486449,5.29352601,1889.1,1889.0,0.8218]
[1746676486751,5.29296594,1889.3,1888.7,0.7709]
[1746676486752,5.29418981,1888.9,1888.7,0.7709]
[1746676486962,5.29424336,1888.9,1888.7,0.7709]
[1746676488352,5.29436679,1888.8,1888.7,0.7709]
[1746676489166,0.7769,1889.4,1888.7,0.7709]
[1746676489369,5.29364225,1889.1,1888.7,6.06541004]
[1746676489558,5.29413135,1888.9,1888.7,0.7709]
[1746676489781,5.29537371,1888.5,1888.2,0.7955]
[1746676489983,5.29570419,1888.4,1888.2,0.7955]
[1746676490472,5.29561764,1888.4,1888.2,0.7955]
[1746676490792,0.8234,1888.9,1888.2,0.7955]
[1746676490793,5.29537818,1888.5,1888.2,0.7955]
[1746676492688,5.29576868,1888.3,1888.2,0.7955]
[1746676493193,5.29563963,1888.4,1888.2,0.7955]
[1746676494592,5.29343551,1889.2,1888.2,0.7955]
[1746676494593,5.29370683,1889.1,1888.6,5.29482054]
[1746676494793,5.29392384,1889.0,1888.7,0.0529411]
[1746676494962,5.29436679,1888.8,1888.7,0.0529411]
[1746676495158,5.29392431,1889.0,1888.5,6.12813296]
[1746676495359,5.29392431,1889.0,1888.6,0.05294756]
[1746676495609,5.29392431,1889.0,1888.6,5.34787193]
[1746676495897,5.29419078,1888.9,1888.6,0.05294756]
[1746676496200,5.29393195,1889.0,1888.6,0.05294756]
[1746676496499,5.29398289,1889.0,1888.6,5.3478603]
[1746676496672,5.29366581,1889.1,1888.7,0.55]
[1746676497697,10.58746384,1889.1,1888.7,0.55]
[1746676497999,5.2938438,1889.0,1888.7,0.55]
[1746676498779,5.29369918,1889.1,1888.7,0.55]
[1746676499100,5.29411925,1888.9,1888.7,0.55]
[1746676499299,5.29429977,1888.9,1888.7,0.55]
[1746676499474,5.29429977,1888.9,1888.5,0.8331]
[1746676499680,5.29448719,1888.8,1888.6,0.55]
[1746676499895,5.29448719,1888.8,1888.5,0.8331]
[1746676500468,5.29455492,1888.8,1888.5,0.8331]
[1746676501604,5.29396069,1889.0,1888.6,5.34785391]
[1746676502207,10.5880164,1889.0,1888.6,5.34785391]
[1746676502501,5.29396069,1889.0,1888.6,5.34785391]
[1746676503002,5.29380624,1889.0,1888.6,0.05294347]
[1746676503303,0.7557,1889.2,1888.5,0.8331]
[1746676503304,5.29492745,1888.6,1888.5,0.8331]
[1746676503504,5.29482963,1888.7,1888.5,0.8331]
[1746676503705,5.2938409,1889.0,1888.5,0.8331]
[1746676503908,5.29573462,1888.4,1888.2,0.7536]
[1746676504072,5.29621828,1888.2,1888.0,6.9105]
[1746676504274,5.2958648,1888.3,1888.0,151.6899]
[1746676504468,5.29632964,1888.1,1888.0,145.6099]
[1746676504704,5.29626059,1888.2,1888.0,145.6099]
[1746676505314,5.29457562,1888.8,1888.4,0.8305]
[1746676505665,5.29457562,1888.8,1888.1,0.8305]
[1746676505666,5.29587807,1888.3,1888.1,0.8305]
[1746676505979,10.59143444,1888.4,1888.1,0.8305]
[1746676506179,5.29588946,1888.3,1888.1,0.8305]
[1746676506403,5.29632964,1888.1,1888.0,144.7794]
[1746676507083,0.7545,1888.5,1888.0,144.7794]
[1746676507410,5.29579293,1888.3,1888.1,0.87225829]
[1746676507586,5.29565217,1888.4,1888.1,0.87225829]
[1746676507989,6.04918454,1888.7,1888.2,5.84589223]
[1746676507990,0.7545,1888.7,1888.2,5.84589223]
[1746676508192,5.29451283,1888.8,1888.4,0.55]
[1746676508399,0.7545,1889.1,1888.5,0.87224666]
[1746676508590,5.29408946,1888.9,1888.5,6.16732529]
[1746676508788,5.29408946,1888.9,1888.5,0.87224666]
[1746676509721,5.29408946,1888.9,1888.5,6.16742589]
[1746676510095,5.29397371,1889.0,1888.6,0.55]
[1746676510326,5.29371951,1889.1,1888.7,0.0529399]
[1746676510701,5.29371951,1889.1,1888.7,5.34758223]
[1746676511033,5.29401851,1889.0,1888.6,0.55]
[1746676511210,5.29401851,1889.0,1888.6,6.63]
[1746676511525,5.29399913,1889.0,1888.7,0.55]
[1746676511699,5.29363015,1889.1,1888.7,0.55]
[1746676512024,5.29363015,1889.1,1888.7,0.60293834]
[1746676512684,5.29359008,1889.1,1888.8,0.7632]
[1746676513133,5.29309055,1889.3,1888.9,0.05293838]
[1746676513293,0.7512,1890.1,1889.4,1.3132]
[1746676513625,5.29158227,1889.8,1889.4,6.60577374]
[1746676514196,10.58341147,1889.8,1889.4,1.3132]
[1746676514405,5.29158227,1889.8,1889.4,1.3132]
[1746676514590,5.29190807,1889.7,1889.4,1.3132]
[1746676514789,5.29167054,1889.8,1889.4,6.05588252]
[1746676515017,5.29167054,1889.8,1889.5,0.55]
[1746676515601,5.29113433,1890.0,1889.6,0.05291631]
[1746676515805,5.29150031,1889.9,1889.7,0.75]
[1746676516128,10.58304824,1889.9,1889.5,1.3]
[1746676516325,5.29150031,1889.9,1889.5,6.59234803]
[1746676516491,5.29154077,1889.9,1889.5,1.3]
[1746676516693,5.29159118,1889.8,1889.5,1.3]
[1746676517501,0.7968,1889.9,1889.6,0.05291606]
[1746676517706,5.29185771,1889.7,1889.3,3.55]
[1746676517912,5.29175059,1889.8,1889.4,0.55]
[1746676517913,5.29172889,1889.8,1889.4,0.55]
[1746676518321,5.29136387,1889.9,1889.5,0.05291607]
[1746676518322,5.29145743,1889.9,1889.5,0.05291607]
[1746676518525,5.29118897,1890.0,1889.6,6.11730747]
[1746676518713,5.29104404,1890.0,1889.7,0.05291229]
[1746676518916,5.29017857,1890.3,1889.7,0.05291229]
[1746676519095,5.29055434,1890.2,1889.7,0.05291229]
[1746676519528,5.29144435,1889.9,1889.6,0.8253]
[1746676519831,5.29181852,1889.8,1889.6,0.8253]
[1746676521042,5.29111012,1890.0,1889.6,6.11728422]
[1746676521341,5.29017857,1890.3,1889.7,0.05291277]
[1746676521342,5.29044545,1890.2,1889.7,0.05291277]
[1746676521497,5.29150314,1889.9,1889.7,0.05291277]
[1746676521705,5.29156524,1889.8,1889.6,0.8253]
[1746676521923,5.29144132,1889.9,1889.6,0.8253]
[1746676522423,5.29161178,1889.8,1889.6,0.8253]
[1746676522620,6.05037817,1890.4,1889.7,0.55]
[1746676522824,5.29094927,1890.1,1889.7,6.63]
[1746676523128,5.29134078,1889.9,1889.7,6.08]
[1746676523330,5.29134078,1889.9,1889.6,0.8253]
[1746676523537,5.29101738,1890.0,1889.7,0.05291224]
[1746676524331,10.58226071,1890.0,1889.7,0.05291224]
[1746676524515,5.29138123,1889.9,1889.7,0.05291224]
[1746676524903,5.29143298,1889.9,1889.6,0.8253]
[1746676525104,5.29171475,1889.8,1889.6,0.8253]
[1746676527211,5.29184526,1889.7,1889.1,0.808]
[1746676527426,6.1138503,1889.6,1889.1,0.808]
[1746676527627,5.29254729,1889.5,1889.1,0.808]
[1746676527832,5.29254729,1889.5,1889.2,0.05293128]
[1746676528145,5.29296888,1889.3,1889.1,0.808]
[1746676528444,5.29283361,1889.4,1889.1,0.808]
[1746676528736,5.29252333,1889.5,1889.1,6.15434382]
[1746676528737,5.29257999,1889.5,1889.1,6.15434382]
[1746676530825,5.29227845,1889.6,1889.2,5.84312627]
[1746676531021,5.29244012,1889.5,1889.2,0.55]
[1746676531217,0.8217,1889.8,1889.2,5.84314288]
[1746676531572,5.29215197,1889.6,1889.3,0.0529237]
[1746676531949,5.29215197,1889.6,1889.1,17.47472158]
[1746676532128,5.29245064,1889.5,1889.2,0.55]
[1746676532619,5.29215197,1889.6,1889.2,5.84313484]
[1746676533327,5.29117872,1890.0,1889.6,5.84212381]
[1746676533551,5.29117872,1890.0,1889.7,0.05291218]
[1746676533855,5.29117872,1890.0,1889.6,0.55]
[1746676534018,5.29117872,1890.0,1889.6,5.84211842]
[1746676534224,5.29117872,1890.0,1889.6,0.55]
[1746676534627,5.29117872,1890.0,1889.6,5.84207102]
[1746676535151,5.29117872,1890.0,1889.6,5.84201494]
[1746676535450,5.29152584,1889.9,1889.6,0.55]
[1746676535654,5.29143439,1889.9,1889.6,0.55]
[1746676535955,5.29107772,1890.0,1889.6,0.55]
[1746676536152,5.29141786,1889.9,1889.6,0.55]
[1746676536752,5.29088655,1890.1,1889.7,0.0529123]
[1746676536920,5.29088655,1890.1,1889.7,5.3447542]
[1746676537122,5.29101106,1890.0,1889.7,0.0529123]
[1746676537354,5.29101106,1890.0,1889.6,8.84204676]
[1746676537654,5.29101106,1890.0,1889.7,0.05291161]
[1746676538019,6.06157564,1890.2,1889.7,0.05291161]
[1746676538020,5.29090922,1890.1,1889.7,0.05291161]
[1746676538225,5.29103394,1890.0,1889.7,0.05291161]
[1746676538962,5.29090922,1890.1,1889.7,5.34475323]
[1746676539750,5.29103302,1890.0,1889.7,0.0529116]
[1746676540956,5.29132455,1889.9,1889.6,0.55]
[1746676541133,5.29185252,1889.7,1889.5,0.8007]
[1746676541726,5.29174302,1889.8,1889.5,0.8007]
[1746676542254,5.29144612,1889.9,1889.6,0.55]
[1746676543059,5.29119255,1890.0,1889.6,0.55]
[1746676543273,5.29119255,1890.0,1889.6,5.84212024]
[1746676543865,5.29133468,1889.9,1889.6,0.55]
[1746676544525,5.29113578,1890.0,1889.6,0.55]
[1746676544727,5.29152059,1889.9,1889.6,0.55]
[1746676545267,0.7799,1890.2,1889.5,0.8007]
[1746676545424,5.29140268,1889.9,1889.5,6.09298158]
[1746676545771,5.29166528,1889.8,1889.5,0.8007]
[1746676546767,5.29188905,1889.7,1889.5,0.8007]
[1746676547246,5.29174917,1889.8,1889.5,0.8007]
[1746676548426,5.29187713,1889.7,1889.5,0.8007]
[1746676548628,5.29187713,1889.7,1889.4,0.55]
[1746676548958,5.29253615,1889.5,1889.3,0.7693]
[1746676549164,5.29219042,1889.6,1889.3,0.7693]
[1746676549325,5.29307553,1889.3,1888.9,5.29399332]
[1746676549530,5.29250844,1889.5,1889.0,5.34655351]
[1746676549831,5.29226823,1889.6,1889.2,6.06251265]
[1746676550026,5.29163721,1889.8,1889.3,5.29279012]
[1746676550234,5.29224527,1889.6,1889.2,6.06246544]
[1746676550456,5.29222452,1889.6,1889.2,6.06244111]
[1746676550667,5.29187022,1889.7,1889.3,5.8958805]
[1746676550887,5.29232363,1889.6,1889.3,0.55]
[1746676551087,5.2920151,1889.7,1889.3,5.84296138]
[1746676551273,5.2920151,1889.7,1889.3,5.89577685]
[1746676551655,5.29031924,1890.3,1889.3,5.89577685]
[1746676551656,0.8242,1890.1,1889.5,0.55]
[1746676551879,6.11506421,1890.1,1889.4,0.825]
[1746676552092,5.29230459,1889.6,1889.4,0.825]
[1746676552277,5.2918181,1889.8,1889.4,6.11756467]
[1746676552594,5.29179643,1889.8,1889.4,0.825]
[1746676552793,10.58363211,1889.8,1889.4,0.825]
[1746676552961,5.2919716,1889.7,1889.4,0.825]
[1746676553290,5.29186083,1889.7,1889.4,0.825]
[1746676553667,5.29216952,1889.6,1889.4,0.825]
[1746676553987,5.29190989,1889.7,1889.4,0.825]
[1746676553988,5.29196372,1889.7,1889.4,0.825]
[1746676554171,5.29180787,1889.8,1889.4,0.825]
[1746676554371,6.11511695,1890.1,1889.4,0.825]
[1746676554583,5.29191732,1889.7,1889.4,0.825]
[1746676555293,5.29229174,1889.6,1889.4,0.825]
[1746676555772,5.29202441,1889.7,1889.4,0.825]
[1746676556560,5.29202441,1889.7,1888.3,0.7857]
[1746676556561,0.8134,1888.8,1888.3,0.7857]
[1746676556993,5.29480027,1888.7,1888.4,0.052953]
[1746676557172,5.29480027,1888.7,1888.3,0.7857]
[1746676557371,10.58969646,1888.7,1888.3,0.7857]
[1746676557691,5.29504262,1888.6,1888.3,0.7857]
[1746676558276,5.29416418,1888.9,1888.3,0.7857]
[1746676558475,5.29548126,1888.5,1888.3,0.7857]
[1746676558684,5.29537879,1888.5,1888.3,0.7857]
[1746676559312,5.29508473,1888.6,1888.3,0.7857]
[1746676559466,5.29479883,1888.7,1888.3,0.7857]
[1746676559671,5.29479883,1888.7,1888.3,0.8386525]
[1746676560515,3.25644933,1889.1,1888.6,0.55]
[1746676560516,5.29411664,1888.9,1888.6,0.55]
[1746676560715,0.7829,1889.2,1888.7,5.29450083]
[1746676560914,5.2936765,1889.1,1888.8,0.8094]
[1746676561206,5.2936765,1889.1,1888.5,5.84507146]
[1746676561207,5.2940865,1888.9,1888.6,0.8094]
[1746676561511,5.29422217,1888.9,1888.6,0.8094]
[1746676561909,5.29437401,1888.8,1888.6,0.8094]
[1746676562076,5.29395841,1889.0,1888.6,0.8094]
[1746676562277,5.29363153,1889.1,1888.7,5.34744512]
[1746676562603,5.29342151,1889.2,1888.7,10.64188151]
[1746676562773,5.29342151,1889.2,1888.7,5.34738053]
[1746676562974,5.2936489,1889.1,1888.6,6.10415728]
[1746676563293,5.29382254,1889.0,1888.6,6.10415728]
[1746676563675,5.29374477,1889.1,1888.6,6.10429828]
[1746676563876,5.29374477,1889.1,1888.7,5.29452886]
[1746676564089,5.29374477,1889.1,1888.6,6.10419815]
[1746676564371,5.29390937,1889.0,1888.6,6.10419815]
[1746676564586,5.29368724,1889.1,1888.7,5.29464425]
[1746676564908,5.2934121,1889.2,1888.7,5.34758462]
[1746676565206,5.29357385,1889.1,1888.7,5.34758462]
[1746676565404,5.29338793,1889.2,1888.7,5.29444107]
[1746676565621,5.29338793,1889.2,1888.8,5.29414862]
[1746676565810,5.29313794,1889.3,1888.8,5.29414862]
[1746676566015,5.29313794,1889.3,1888.8,10.58829413]
[1746676566202,5.29313794,1889.3,1888.8,5.29414551]
[1746676566582,10.5863612,1889.3,1888.8,5.29414551]
[1746676566910,5.29327965,1889.2,1888.8,5.29414551]
[1746676567227,5.29327965,1889.2,1888.8,10.58832241]
[1746676567392,5.29327965,1889.2,1888.8,5.29414551]
[1746676568515,5.29327965,1889.2,1888.8,5.34708208]
[1746676568893,5.29318637,1889.3,1888.8,5.34708208]
[1746676569418,5.29230453,1889.6,1889.2,5.29324448]
[1746676569586,6.05301367,1889.7,1889.2,5.29324448]
[1746676569925,6.45220471,1889.7,1889.2,5.29324448]
[1746676570122,6.05301367,1889.7,1889.2,5.29324448]
[1746676570921,6.05301367,1889.7,1889.3,0.7814]
[1746676571215,5.29170569,1889.8,1889.3,0.7814]
[1746676571427,5.29170569,1889.8,1889.4,5.29267913]
[1746676571886,5.29140708,1889.9,1889.5,5.29234619]
[1746676572719,5.29140708,1889.9,1889.4,5.29267913]
[1746676572720,5.29140708,1889.9,1889.4,5.29251967]
[1746676572889,5.29162403,1889.8,1889.5,0.55]
[1746676573086,5.29072535,1890.1,1889.3,0.7814]
[1746676573337,5.29072535,1890.1,1889.1,6.08070805]
[1746676573338,5.29251781,1889.5,1889.1,6.08070805]
[1746676573518,0.8197,1890.0,1889.4,5.29267151]
[1746676573829,5.29153434,1889.9,1889.5,0.7954]
[1746676574037,10.58283528,1889.9,1889.5,0.7954]
[1746676574196,5.29161949,1889.8,1889.5,0.7954]
[1746676574911,10.58303809,1889.9,1889.5,0.7954]
[1746676575114,5.29160789,1889.8,1889.5,0.7954]
[1746676576460,1.21118296,1890.0,1889.5,0.7954]
[1746676576610,5.29161325,1889.8,1889.5,0.7954]
[1746676576807,2.51206467,1890.7,1889.6,0.55]
[1746676577062,0.7785,1890.7,1890.2,0.55]
[1746676577230,0.7785,1890.7,1890.0,0.7527]
[1746676577231,5.28933753,1890.6,1890.0,0.7527]
[1746676577408,5.28999009,1890.4,1890.0,0.7527]
[1746676577736,5.28989559,1890.4,1890.0,0.7527]
[1746676577923,0.7785,1890.7,1890.0,6.04358618]
[1746676578124,0.7785,1890.7,1890.0,0.7527]
[1746676578306,5.28989083,1890.4,1890.0,6.04363123]
[1746676578828,8.81087025,1890.8,1890.2,0.7594]
[1746676578829,0.4054762,1890.8,1890.2,0.7594]
[1746676579028,5.2891999,1890.7,1890.3,0.05289754]
[1746676579228,6.08085168,1891.0,1890.3,0.55]
[1746676579427,5.28896483,1890.8,1890.5,0.55]
[1746676579744,5.2889756,1890.8,1890.5,0.55]
[1746676580311,5.28833183,1891.0,1890.7,0.55]
[1746676580510,5.28851136,1890.9,1890.7,0.55]
[1746676580973,5.28850327,1890.9,1890.7,0.55]
[1746676581271,5.28833623,1891.0,1890.7,0.60288388]
[1746676581443,5.28803084,1891.1,1890.7,0.55]
[1746676582168,5.28821172,1891.0,1890.8,0.8059]
[1746676582738,5.28848696,1890.9,1890.8,0.8059]
[1746676583757,5.28930641,1890.7,1890.5,1.3321]
[1746676583939,5.28932613,1890.6,1890.5,0.7821]
[1746676584352,5.28919257,1890.7,1890.5,0.7821]
[1746676584600,5.28932613,1890.6,1890.5,0.7821]
[1746676586096,5.28932613,1890.6,1889.6,0.26544043]
[1746676586252,5.29054073,1890.2,1889.8,5.29137799]
[1746676586654,5.29054073,1890.2,1889.9,0.8109]
[1746676586853,5.29100529,1890.0,1889.9,0.8109]
[1746676587053,5.29089396,1890.1,1889.9,0.8109]
[1746676587580,5.29062183,1890.2,1889.9,0.8109]
[1746676588083,5.29055928,1890.2,1889.9,0.8109]
[1746676588271,10.58125161,1890.2,1889.9,0.8109]
[1746676588480,5.29077561,1890.1,1889.9,0.8109]
[1746676589362,5.29100529,1890.0,1889.9,0.8109]
[1746676589563,5.29090021,1890.1,1889.9,0.8109]
[1746676590482,5.29060845,1890.2,1889.9,0.8109]
[1746676590692,5.29031363,1890.3,1889.7,8.84161238]
[1746676590693,5.29156524,1889.8,1889.7,0.8213]
[1746676591274,5.29222096,1889.6,1889.4,0.8283]
[1746676591482,5.29202057,1889.7,1889.4,0.8283]
[1746676592002,5.29171041,1889.8,1889.4,0.8283]
[1746676592294,5.29171041,1889.8,1889.5,0.0529175]
[1746676593094,10.58351111,1889.8,1889.5,0.0529175]
[1746676593413,5.29090208,1890.1,1889.7,5.29184429]
[1746676593577,5.29090208,1890.1,1889.8,0.88120714]
[1746676593782,5.29057822,1890.2,1889.8,0.88120714]
[1746676593981,5.29031601,1890.3,1889.9,0.55]
[1746676594202,5.29031601,1890.3,1889.9,5.84117107]
[1746676594508,5.29031601,1890.3,1889.9,5.84105819]
[1746676594865,5.28974858,1890.5,1890.0,5.34371259]
[1746676595294,5.28974858,1890.5,1890.0,5.343706]
[1746676596003,5.28974858,1890.5,1890.0,5.34370271]
[1746676596204,5.28974858,1890.5,1890.1,5.29071761]
[1746676596409,0.781,1890.9,1890.2,4.63624933]
[1746676596712,5.288667,1890.9,1890.4,5.83967884]
[1746676597022,5.28831567,1891.0,1890.6,0.8298]
[1746676597180,6.06836233,1891.4,1890.7,0.05288986]
[1746676597510,6.47244619,1891.4,1890.7,0.05288986]
[1746676597668,5.28826225,1891.0,1890.6,1.3798]
[1746676597869,5.2885294,1890.9,1890.6,1.3798]
[1746676598487,5.28837564,1891.0,1890.6,1.3798]
[1746676599380,5.28864409,1890.9,1890.6,0.8298]
[1746676599617,5.28860988,1890.9,1890.6,0.88268459]
[1746676599892,5.28837386,1891.0,1890.6,0.88268459]
[1746676600271,5.28809454,1891.1,1890.7,0.55]
[1746676600471,5.28809454,1891.1,1890.7,5.83902157]
[1746676600705,5.28811313,1891.1,1890.7,0.55]
[1746676600870,5.28786611,1891.2,1890.7,0.55]
[1746676601072,5.28783646,1891.2,1890.7,5.83887578]
[1746676601273,5.28783646,1891.2,1890.7,5.83883824]
[1746676601493,5.28783646,1891.2,1890.8,5.28876369]
[1746676601913,5.28783646,1891.2,1890.7,5.8388706]
[1746676602316,5.28729163,1891.4,1891.0,0.7954]
[1746676602791,5.28765394,1891.2,1891.0,0.7954]
[1746676603106,5.28765394,1891.2,1891.0,0.6954]
[1746676603489,5.28750422,1891.3,1891.0,0.6954]
[1746676605392,5.28750422,1891.3,1891.0,0.74827655]
[1746676605715,5.28726822,1891.4,1891.0,0.74827655]
[1746676606150,10.57462582,1891.4,1891.0,0.74827655]
[1746676606344,5.28737232,1891.3,1891.0,0.74827655]
[1746676608253,5.28737232,1891.3,1891.0,0.6954]
[1746676608751,5.28645839,1891.7,1891.3,0.55]
[1746676608913,5.28653461,1891.6,1891.3,0.55]
[1746676609335,5.28633555,1891.7,1891.3,5.83734405]
[1746676610355,5.28619571,1891.8,1891.4,5.28697624]
[1746676610558,5.28590725,1891.9,1891.5,5.28675233]
[1746676610858,5.28590725,1891.9,1891.6,0.8046]
[1746676611358,5.28601695,1891.8,1891.6,0.8046]
[1746676611860,5.28625046,1891.7,1891.4,0.7882]
[1746676612056,5.28670163,1891.6,1891.4,0.7882]
[1746676612236,5.28614503,1891.8,1891.4,0.7882]
[1746676612636,5.28614503,1891.8,1891.4,6.07522651]
[1746676613120,5.28614503,1891.8,1891.4,0.7882]
[1746676613323,5.28639046,1891.7,1891.4,0.7882]
[1746676614463,5.2876493,1891.2,1891.1,0.7561]
[1746676614680,5.28754736,1891.3,1891.1,0.7561]
[1746676615121,5.28711976,1891.4,1891.1,0.7561]
[1746676615325,5.28762828,1891.3,1890.9,0.80897615]
[1746676615526,5.28768258,1891.2,1890.9,0.80897615]
[1746676615941,5.28768258,1891.2,1890.9,0.7561]
[1746676616144,5.2875488,1891.3,1890.9,0.7561]
[1746676616365,5.2875488,1891.3,1891.0,0.05287644]
[1746676616551,0.7585,1891.7,1890.9,0.7561]
[1746676616751,5.28932613,1890.6,1890.5,0.7977]
[1746676616955,5.28914232,1890.7,1890.5,0.7977]
[1746676617765,5.28890771,1890.8,1890.5,0.7977]
[1746676618564,5.2890528,1890.7,1890.3,9.3565458]
[1746676618859,5.28894442,1890.8,1890.4,0.55]
[1746676619173,5.28911002,1890.7,1890.4,0.55]
[1746676619886,5.28934304,1890.6,1890.4,0.55]
[1746676620189,5.29000175,1890.4,1890.1,0.8101]
[1746676620393,5.28945683,1890.6,1890.1,0.86300059]
[1746676620572,5.28892639,1890.8,1890.4,6.09990145]
[1746676620998,5.28892639,1890.8,1890.4,0.8101]
[1746676621203,5.28904838,1890.7,1890.4,0.8101]
[1746676621805,5.28882208,1890.8,1890.4,6.09991912]
[1746676622100,5.28904858,1890.7,1890.4,0.8101]
[1746676622301,5.28918562,1890.7,1890.2,3.8101]
[1746676622503,5.28949491,1890.6,1890.3,0.05289528]
[1746676624007,5.28853392,1890.9,1890.2,0.86299529]
[1746676624008,5.29016558,1890.3,1890.2,0.86299529]
[1746676624204,10.58014558,1890.4,1890.2,0.8101]
[1746676624411,0.8041,1890.8,1890.2,0.8101]
[1746676624718,0.45589713,1892.3,1890.0,3.25644933]
[1746676624719,6.09027986,1891.8,1891.2,5.83750294]
[1746676624884,6.08951429,1892.0,1891.5,0.8276]
[1746676625207,5.28542276,1892.0,1891.5,6.16715457]
[1746676625929,0.7736,1892.2,1891.5,0.8804626]
[1746676626457,5.28591834,1891.9,1891.5,0.8276]
[1746676627206,1.08028492,1892.6,1891.5,3.8276]
[1746676627427,5.28413963,1892.5,1892.0,0.8245]
[1746676627611,6.36402345,1892.6,1892.0,6.50228755]
[1746676627817,6.09953853,1892.6,1892.0,6.50228755]
[1746676628014,5.28415515,1892.5,1892.0,0.8245]
[1746676629142,6.0997003,1892.6,1892.0,6.10988202]
[1746676629515,6.09966776,1892.6,1892.0,0.8245]
[1746676629731,6.09966776,1892.6,1892.0,6.10979021]
[1746676629923,6.36267717,1892.6,1892.0,6.10979021]
[1746676630755,0.753,1892.2,1891.5,0.7799]
[1746676631743,0.753,1892.2,1891.5,6.06657327]
[1746676631744,5.28530106,1892.1,1891.5,6.06657327]
[1746676631907,6.03798703,1892.2,1891.6,5.28628831]
[1746676632105,5.28471883,1892.3,1891.7,0.55]
[1746676632337,5.28471883,1892.3,1891.8,6.06583096]
[1746676632519,5.28471883,1892.3,1891.8,0.7799]
[1746676632841,5.28489539,1892.2,1891.8,0.7799]
[1746676633008,5.28470835,1892.3,1891.8,0.7799]
[1746676633211,5.28470936,1892.3,1891.8,0.7799]
[1746676633639,0.753,1892.4,1891.8,6.06576746]
[1746676633850,5.28418006,1892.5,1892.0,5.28538296]
[1746676634350,5.28431172,1892.4,1891.9,5.28556015]
[1746676634515,5.28459441,1892.3,1891.8,6.06573111]
[1746676634718,5.28422549,1892.5,1891.9,5.28546036]
[1746676635017,5.28430218,1892.4,1891.9,5.28546036]
[1746676635217,8.28250587,1893.1,1891.7,0.55]
[1746676635218,0.4385771,1893.2,1892.4,0.7799]
[1746676635435,5.72079055,1893.2,1892.7,5.28337911]
[1746676635637,5.28279133,1893.0,1892.7,0.05283205]
[1746676635836,5.28284573,1893.0,1892.7,0.05283205]
[1746676636019,5.28345749,1892.7,1891.9,3.25644933]
[1746676636220,5.28444605,1892.4,1892.2,0.7799]
[1746676636424,5.28262017,1893.0,1892.2,0.7799]
[1746676636619,5.28332896,1892.8,1892.2,6.06451112]
[1746676636823,5.28351542,1892.7,1892.2,6.06472346]
[1746676637250,0.753,1893.1,1892.2,0.7799]
[1746676637510,5.28345195,1892.8,1892.2,6.06460093]
[1746676637718,5.28418073,1892.5,1892.0,9.04812024]
[1746676637930,1.1966771,1893.2,1892.2,5.28466302]
[1746676638125,5.2834617,1892.7,1892.2,5.28466302]
[1746676638326,0.7581,1892.7,1892.2,5.28485056]
[1746676638652,5.28396943,1892.6,1892.1,0.7628]
[1746676638843,5.28396789,1892.6,1892.1,0.7628]
[1746676639025,5.28388245,1892.6,1892.1,6.04788429]
[1746676639225,5.28387037,1892.6,1892.1,6.04788429]
[1746676639623,5.28304641,1892.9,1892.1,0.05284753]
[1746676639826,5.28304641,1892.9,1892.4,5.28415959]
[1746676640153,5.28320043,1892.8,1892.3,6.09042989]
[1746676640451,5.28306216,1892.9,1892.4,5.28427111]
[1746676640641,5.28306216,1892.9,1892.3,0.8061]
[1746676640642,5.28323382,1892.8,1892.3,6.09053284]
[1746676640833,5.28323382,1892.8,1892.3,0.8061]
[1746676640834,5.28336236,1892.8,1892.3,0.8061]
[1746676641041,5.28337881,1892.8,1892.3,0.8061]
[1746676641253,5.28347804,1892.7,1892.3,0.8061]
[1746676641452,5.28404935,1892.5,1892.3,0.8061]
[1746676641626,5.28335785,1892.8,1892.3,6.09066197]
[1746676642029,5.28351,1892.7,1892.3,0.8061]
[1746676642242,5.2833746,1892.8,1892.3,6.09062285]
[1746676642767,5.28353547,1892.7,1892.3,0.8061]
[1746676642981,0.4385771,1895.1,1893.4,0.55]
[1746676643267,0.4385771,1895.1,1894.5,0.8179]
[1746676643422,0.4385771,1895.1,1894.6,0.05277469]
[1746676643620,5.27728068,1895.0,1894.5,0.8179]
[1746676643856,0.4385771,1895.1,1894.5,0.8179]
[1746676644055,0.4385771,1895.1,1894.6,0.55]
[1746676644259,5.27730199,1895.0,1894.5,0.8179]